bitfinex/quotes_BTCUSD_20221001
["timestamp","ask_amount","ask_price","bid_price","bid_amount"]
[1664616023468,2.20802997,19341.0,19340.0,0.01570145]
[1664616023620,2.28702997,19341.0,19340.0,0.01570145]
[1664616024992,2.20802997,19341.0,19340.0,0.01570145]
[1664616025641,2.28702997,19341.0,19340.0,0.01570145]
[1664616025876,2.33871997,19341.0,19340.0,0.01570145]
[1664616026755,2.34611997,19341.0,19340.0,0.01570145]
[1664616026972,2.53717374,19341.0,19340.0,0.01570145]
[1664616027405,3.08077374,19341.0,19340.0,4.5e-07]
[1664616027619,3.15977374,19341.0,19339.0,0.0111]
[1664616027756,2.40311358,19340.0,19339.0,0.0111]
[1664616027975,2.45311358,19340.0,19339.0,0.0111]
[1664616028185,2.48027126,19340.0,19339.0,0.0111]
[1664616028428,2.56717005,19340.0,19339.0,0.0111]
[1664616029536,2.64617005,19340.0,19339.0,0.0111]
[1664616030992,2.56717005,19340.0,19339.0,0.0111]
[1664616031691,2.64617005,19340.0,19339.0,0.0111]
[1664616032471,2.71542246,19340.0,19339.0,0.0111]
[1664616032698,2.44536869,19340.0,19339.0,0.0111]
[1664616032927,2.36636869,19340.0,19339.0,0.0111]
[1664616033165,1.46636869,19340.0,19339.0,0.0111]
[1664616033386,1.11636869,19340.0,19339.0,0.0111]
[1664616033616,1.19536869,19340.0,19339.0,0.0111]
[1664616034297,1.18796869,19340.0,19339.0,0.0111]
[1664616034522,1.23796869,19340.0,19339.0,0.0111]
[1664616034974,1.15896869,19340.0,19339.0,0.0111]
[1664616035151,0.81960863,19340.0,19339.0,0.0111]
[1664616035556,0.89860863,19340.0,19339.0,0.0111]
[1664616036466,1.19860863,19340.0,19339.0,0.0111]
[1664616036864,1.16960863,19340.0,19339.0,0.0111]
[1664616037573,1.24860863,19340.0,19339.0,0.0111]
[1664616037780,1.43962669,19340.0,19339.0,0.0111]
[1664616038876,1.36062669,19340.0,19339.0,0.0111]
[1664616039090,1.31062669,19340.0,19339.0,0.0111]
[1664616039327,1.36062669,19340.0,19339.0,0.0111]
[1664616039538,1.43962669,19340.0,19339.0,0.0111]
[1664616040912,1.36062669,19340.0,19339.0,0.0111]
[1664616041747,1.43962669,19340.0,19339.0,0.0111]
[1664616042627,1.48011693,19340.0,19339.0,0.0111]
[1664616042915,1.36062669,19340.0,19339.0,0.0111]
[1664616043818,1.43962669,19340.0,19339.0,0.0111]
[1664616044051,1.48011693,19340.0,19339.0,0.0111]
[1664616044941,1.40111693,19340.0,19339.0,0.0111]
[1664616045586,1.36062669,19340.0,19339.0,0.0111]
[1664616045799,1.48011693,19340.0,19339.0,0.0111]
[1664616045946,1.43962669,19340.0,19339.0,0.0111]
[1664616046319,1.48011693,19340.0,19339.0,0.0111]
[1664616047609,1.40111693,19340.0,19339.0,0.0111]
[1664616047819,1.48011693,19340.0,19339.0,0.0111]
[1664616048831,1.40111693,19340.0,19339.0,0.0111]
[1664616049589,1.46185229,19340.0,19339.0,0.0111]
[1664616049804,1.54085229,19340.0,19339.0,0.0111]
[1664616050285,1.48011693,19340.0,19339.0,0.0111]
[1664616050951,1.40111693,19340.0,19339.0,0.0111]
[1664616051166,1.46185229,19340.0,19339.0,0.0111]
[1664616051437,1.40111693,19340.0,19339.0,0.0111]
[1664616051894,1.54085229,19340.0,19339.0,0.0111]
[1664616052096,1.54085229,19340.0,19339.0,0.01098791]
[1664616053050,4.99192421,19340.0,19339.0,0.01098791]
[1664616053738,5.07092421,19340.0,19339.0,0.01098791]
[1664616054400,4.98303117,19340.0,19339.0,0.01098791]
[1664616054848,5.04376653,19340.0,19339.0,0.01098791]
[1664616055073,4.96476653,19340.0,19339.0,0.01098791]
[1664616055601,5.04376653,19340.0,19339.0,0.01098791]
[1664616057034,4.96476653,19340.0,19339.0,0.01098791]
[1664616057726,5.04376653,19340.0,19339.0,0.01098791]
[1664616059319,4.96476653,19340.0,19339.0,0.01098791]
[1664616059765,5.04376653,19340.0,19339.0,0.01098791]
[1664616059998,5.00327629,19340.0,19339.0,0.01098791]
[1664616060224,5.04378162,19340.0,19339.0,0.01098791]
[1664616060451,5.00327629,19340.0,19339.0,0.01098791]
[1664616060672,5.04378182,19340.0,19339.0,0.01098791]
[1664616061118,4.96478182,19340.0,19339.0,0.01098791]
[1664616061799,5.04378182,19340.0,19339.0,0.01098791]
[1664616062239,4.98304646,19340.0,19339.0,0.01098791]
[1664616062476,4.7920284,19340.0,19339.0,0.01098791]
[1664616063025,4.7130284,19340.0,19339.0,0.01098791]
[1664616063250,1.18295648,19340.0,19339.0,0.01098791]
[1664616063921,1.26195648,19340.0,19339.0,0.01098791]
[1664616064579,1.32269184,19340.0,19339.0,0.01098791]
[1664616065023,1.28416679,19340.0,19339.0,0.01098791]
[1664616065249,1.61810663,19340.0,19339.0,0.01098791]
[1664616065987,1.69710663,19340.0,19339.0,0.01098791]
[1664616066239,1.61612615,19340.0,19339.0,0.01098791]
[1664616066458,1.69710663,19340.0,19339.0,0.01098791]
[1664616067089,1.61810663,19340.0,19339.0,0.01098791]
[1664616067233,2.05321895,19340.0,19339.0,0.01098791]
[1664616067695,1.73759687,19340.0,19339.0,0.01098791]
[1664616067941,1.69713972,19340.0,19339.0,0.01098791]
[1664616068701,1.63637127,19340.0,19339.0,0.01098791]
[1664616068976,1.6971375,19340.0,19339.0,0.01098791]
[1664616069183,1.63637127,19340.0,19339.0,0.01098791]
[1664616069630,1.61813904,19340.0,19339.0,0.01098791]
[1664616069950,1.69713904,19340.0,19339.0,0.01098791]
[1664616070982,1.61813904,19340.0,19339.0,0.01098791]
[1664616071903,1.69713904,19340.0,19339.0,0.01098791]
[1664616073115,1.61813904,19340.0,19339.0,0.01098791]
[1664616073793,1.69715405,19340.0,19339.0,0.01098791]
[1664616073991,1.01321421,19340.0,19339.0,0.01098791]
[1664616074273,1.01321421,19340.0,19339.0,0.01091881]
[1664616075186,1.28421421,19340.0,19339.0,0.01091881]
[1664616075849,1.36321421,19340.0,19339.0,0.01091881]
[1664616075972,1.71856586,19340.0,19339.0,0.01091881]
[1664616076811,1.63758538,19340.0,19339.0,0.01091881]
[1664616077020,1.55858538,19340.0,19339.0,0.01091881]
[1664616077248,1.63956586,19340.0,19339.0,0.01091881]
[1664616077460,1.57878308,19340.0,19339.0,0.01091881]
[1664616077995,1.71857111,19340.0,19339.0,0.01091881]
[1664616078735,0.50148802,19340.0,19339.0,0.21575814]
[1664616078975,0.40894559,19343.0,19340.0,0.66639817]
[1664616079234,0.26717846,19343.0,19342.0,1.45]
[1664616079465,0.25,19344.0,19342.0,1.23669898]
[1664616079694,0.25,19344.0,19343.0,0.79215974]
[1664616079924,0.25,19344.0,19343.0,0.99693649]
[1664616080153,0.25,19344.0,19343.0,0.92967604]
[1664616080391,0.76173144,19344.0,19343.0,0.52157762]
[1664616080639,0.76173144,19344.0,19343.0,0.38399874]
[1664616080640,1.11884232,19344.0,19343.0,0.38399874]
[1664616080869,0.25,19344.0,19343.0,0.38399874]
[1664616081572,0.25,19344.0,19342.0,0.33485234]
[1664616081851,0.25,19344.0,19343.0,0.04]
[1664616082564,0.25,19344.0,19343.0,0.42399874]
[1664616082812,0.25,19344.0,19343.0,0.49988385]
[1664616083041,0.25,19344.0,19343.0,0.45988385]
[1664616083948,0.25,19344.0,19343.0,0.11888511]
[1664616084193,0.25,19344.0,19343.0,0.50288385]
[1664616085111,0.25,19344.0,19343.0,0.45988385]
[1664616085860,0.25,19344.0,19343.0,0.50288385]
[1664616086307,0.25,19344.0,19343.0,0.11888511]
[1664616087260,0.25,19344.0,19343.0,0.07588511]
[1664616087923,0.25,19344.0,19343.0,0.11888511]
[1664616089264,0.25,19344.0,19343.0,0.07588511]
[1664616089940,0.25,19344.0,19343.0,0.11888511]
[1664616091091,0.25,19344.0,19343.0,0.07588511]
[1664616091886,0.25,19344.0,19343.0,0.11888511]
[1664616092554,0.25,19344.0,19343.0,0.043]
[1664616093178,0.25,19344.0,19342.0,0.84817708]
[1664616093443,0.25,19344.0,19343.0,0.43399874]
[1664616093637,0.25,19344.0,19343.0,0.05]
[1664616096059,0.25,19344.0,19343.0,0.093]
[1664616096905,0.25,19344.0,19343.0,0.043]
[1664616097086,0.25,19344.0,19342.0,0.84817708]
[1664616097298,0.25,19344.0,19343.0,0.51881645]
[1664616097687,0.25,19344.0,19343.0,0.05]
[1664616097944,0.25,19344.0,19343.0,0.093]
[1664616098135,0.25,19344.0,19343.0,0.47699874]
[1664616098371,0.25,19344.0,19343.0,0.093]
[1664616099250,0.25,19344.0,19342.0,0.46417834]
[1664616099478,0.25,19344.0,19343.0,0.05]
[1664616099738,0.25,19344.0,19342.0,0.258652]
[1664616099956,0.25,19344.0,19342.0,0.302652]
[1664616100134,0.25,19344.0,19343.0,0.05]
[1664616100575,0.379239,19344.0,19342.0,0.302652]
[1664616100788,0.3,19343.0,19342.0,0.302652]
[1664616101194,0.3,19343.0,19342.0,0.258652]
[1664616101832,0.3,19343.0,19342.0,0.302652]
[1664616103112,0.3,19343.0,19342.0,0.258652]
[1664616103948,0.3,19343.0,19342.0,0.302652]
[1664616104376,0.3,19343.0,19342.0,0.30255547]
[1664616105251,0.3,19343.0,19342.0,0.25855547]
[1664616105915,0.3,19343.0,19342.0,0.30255547]
[1664616106072,0.637718,19344.0,19343.0,0.05]
[1664616106284,0.0502829,19343.0,19342.0,0.30255547]
[1664616106502,0.3,19343.0,19342.0,0.17322947]
[1664616107170,0.81173144,19343.0,19342.0,0.12922947]
[1664616108050,0.81173144,19343.0,19342.0,0.17122947]
[1664616109161,0.81173144,19343.0,19342.0,0.12922947]
[1664616109381,1.03922409,19343.0,19342.0,0.12922947]
[1664616109850,1.22556462,19343.0,19342.0,0.17122947]
[1664616110073,1.60956336,19343.0,19342.0,0.17122947]
[1664616111176,1.60956336,19343.0,19342.0,0.12922947]
[1664616111397,1.60956336,19343.0,19341.0,0.129333]
[1664616111618,0.70022141,19342.0,19341.0,0.129333]
[1664616111841,0.94993851,19342.0,19341.0,0.169333]
[1664616112999,2.49248444,19342.0,19341.0,0.04]
[1664616113303,0.0502829,19341.0,19340.0,0.129336]
[1664616113507,1.24601308,19341.0,19340.0,0.129336]
[1664616113759,0.86201434,19341.0,19340.0,0.129336]
[1664616113946,0.86201434,19341.0,19340.0,0.171336]
[1664616115188,0.86201434,19341.0,19340.0,0.129336]
[1664616116081,0.86201434,19341.0,19340.0,0.171336]
[1664616117272,0.86201434,19341.0,19340.0,0.129336]
[1664616117950,0.86201434,19341.0,19340.0,0.171336]
[1664616118620,0.81173144,19341.0,19340.0,0.171336]
[1664616119443,1.1092361,19341.0,19340.0,0.129336]
[1664616120001,1.1092361,19341.0,19340.0,0.171336]
[1664616120240,0.81173144,19341.0,19340.0,0.171336]
[1664616121333,0.81173144,19341.0,19340.0,0.129336]
[1664616122033,0.81173144,19341.0,19340.0,0.171336]
[1664616123263,0.81173144,19341.0,19340.0,0.129336]
[1664616123988,0.81173144,19341.0,19340.0,0.171336]
[1664616125212,0.81173144,19341.0,19340.0,0.129336]
[1664616125640,0.77040486,19341.0,19340.0,0.129336]
[1664616126105,0.77040486,19341.0,19340.0,0.171336]
[1664616127428,0.77040486,19341.0,19340.0,0.129336]
[1664616128104,0.77040486,19341.0,19340.0,0.171336]
[1664616129247,0.77040486,19341.0,19340.0,0.129336]
[1664616130141,0.77040486,19341.0,19340.0,0.171336]
[1664616131724,0.77040486,19341.0,19340.0,0.129336]
[1664616132182,0.77040486,19341.0,19340.0,0.171336]
[1664616133293,0.77040486,19341.0,19340.0,0.129336]
[1664616133518,0.7703113,19341.0,19340.0,0.129336]
[1664616134066,0.7703113,19341.0,19340.0,0.171336]
[1664616135423,0.7703113,19341.0,19340.0,0.129336]
[1664616136110,0.7703113,19341.0,19340.0,0.171336]
[1664616136951,0.7703113,19341.0,19340.0,0.431336]
[1664616137388,0.77017703,19341.0,19340.0,0.389336]
[1664616137980,0.77017703,19341.0,19340.0,0.431336]
[1664616139297,0.77017703,19341.0,19340.0,0.26]
[1664616139507,1.67499003,19341.0,19340.0,0.26]
[1664616140126,1.67499003,19341.0,19340.0,0.302]
[1664616141196,0.89950844,19341.0,19340.0,0.35916068]
[1664616141428,0.51173144,19341.0,19340.0,0.35916068]
[1664616141655,0.64099044,19341.0,19340.0,0.35916068]
[1664616141963,0.129259,19341.0,19340.0,0.31716068]
[1664616142224,0.129259,19341.0,19340.0,0.36016068]
[1664616143297,0.129259,19341.0,19340.0,0.31716068]
[1664616144268,0.129259,19341.0,19340.0,0.35916068]
[1664616145491,0.129259,19341.0,19340.0,0.31716068]
[1664616146162,0.129259,19341.0,19340.0,0.36216068]
[1664616146381,0.646106,19342.0,19340.0,0.36216068]
[1664616146770,1.15783744,19342.0,19340.0,0.62084068]
[1664616146985,1.02858244,19342.0,19340.0,0.49150068]
[1664616147302,1.15783344,19342.0,19340.0,0.57584068]
[1664616147725,1.15783344,19342.0,19341.0,0.05]
[1664616147978,1.15783344,19342.0,19340.0,0.57584068]
[1664616148139,1.15783344,19342.0,19341.0,0.05]
[1664616148559,1.45783344,19342.0,19341.0,0.05]
[1664616148877,1.45783344,19342.0,19340.0,0.62084068]
[1664616149240,1.15783344,19342.0,19341.0,0.056368]
[1664616149781,1.45783344,19342.0,19341.0,0.056368]
[1664616150004,1.45783344,19342.0,19340.0,0.51868]
[1664616150222,1.45783344,19342.0,19341.0,0.044]
[1664616150947,1.44491404,19342.0,19341.0,0.044]
[1664616151379,1.14491404,19342.0,19341.0,0.05]
[1664616151601,1.44491404,19342.0,19341.0,0.05]
[1664616151730,1.44491404,19342.0,19340.0,0.51868]
[1664616151963,1.14491404,19342.0,19341.0,0.05]
[1664616152181,1.14491404,19342.0,19341.0,0.044]
[1664616152607,1.44491404,19342.0,19341.0,0.044]
[1664616152825,1.14491404,19342.0,19341.0,0.044]
[1664616153248,1.14491404,19342.0,19340.0,0.51868]
[1664616153466,1.14491404,19342.0,19341.0,0.05]
[1664616153891,1.44491404,19342.0,19341.0,0.05]
[1664616154118,1.44491404,19342.0,19341.0,0.044]
[1664616155378,1.44491404,19342.0,19340.0,0.51868]
[1664616155619,1.44491404,19342.0,19341.0,0.05]
[1664616155847,1.44491404,19342.0,19340.0,0.51868]
[1664616156075,1.44491404,19342.0,19341.0,0.05]
[1664616157182,1.44491404,19342.0,19340.0,0.56368]
[1664616157363,1.44491404,19342.0,19341.0,0.05]
[1664616158011,1.14491404,19342.0,19340.0,0.51868]
[1664616158279,1.14491404,19342.0,19341.0,0.094]
[1664616158685,1.44491404,19342.0,19341.0,0.094]
[1664616158898,1.44491404,19342.0,19341.0,0.044]
[1664616159638,1.44491404,19342.0,19340.0,0.51868]
[1664616159866,1.14491404,19342.0,19340.0,0.51868]
[1664616160073,1.14491404,19342.0,19341.0,0.094]
[1664616160520,1.44491404,19342.0,19341.0,0.094]
[1664616160747,1.44491404,19342.0,19341.0,0.044]
[1664616161408,1.44491404,19342.0,19341.0,0.05]
[1664616161847,0.2454186,19342.0,19341.0,0.05]
[1664616162068,0.2454186,19342.0,19341.0,0.18710068]
[1664616163437,0.2454186,19342.0,19341.0,0.14510068]
[1664616164100,0.2454186,19342.0,19341.0,0.19010068]
[1664616165434,0.2454186,19342.0,19341.0,0.14510068]
[1664616166353,0.2454186,19342.0,19341.0,0.09510068]
[1664616166578,0.3746706,19342.0,19341.0,0.045]
[1664616167710,0.3746706,19342.0,19340.0,0.51868]
[1664616167933,0.3746706,19342.0,19341.0,0.05]
[1664616168259,0.6331756,19342.0,19341.0,0.095]
[1664616168471,0.6331756,19342.0,19341.0,0.045]
[1664616169503,0.6331756,19342.0,19340.0,0.51868]
[1664616169710,0.6331756,19342.0,19341.0,0.101868]
[1664616170141,0.6331756,19342.0,19341.0,0.05]
[1664616170610,0.2454186,19342.0,19341.0,0.05]
[1664616172203,0.2454186,19342.0,19341.0,0.089]
[1664616173500,0.2454186,19342.0,19341.0,0.05]
[1664616174212,0.2454186,19342.0,19341.0,0.089]
[1664616175539,0.2454186,19342.0,19341.0,0.05]
[1664616175806,0.2454186,19342.0,19341.0,0.1456472]
[1664616176352,0.2454186,19342.0,19341.0,0.1896472]
[1664616177340,0.2454186,19342.0,19341.0,0.1456472]
[1664616178284,0.2454186,19342.0,19341.0,0.1896472]
[1664616179573,0.2454186,19342.0,19341.0,0.1456472]
[1664616180255,0.2454186,19342.0,19341.0,0.1896472]
[1664616181596,0.2454186,19342.0,19341.0,0.1456472]
[1664616181803,0.2454186,19342.0,19341.0,0.14556365]
[1664616182286,0.2454186,19342.0,19341.0,0.18756365]
[1664616183605,0.2454186,19342.0,19341.0,0.0956472]
[1664616184265,0.2454186,19342.0,19341.0,0.1376472]
[1664616185435,0.2454186,19342.0,19341.0,0.0956472]
[1664616186314,0.2454186,19342.0,19341.0,0.1396472]
[1664616187555,0.2454186,19342.0,19341.0,0.0956472]
[1664616188308,0.2454186,19342.0,19341.0,0.1406472]
[1664616189787,0.2454186,19342.0,19341.0,0.1306472]
[1664616189971,0.2454186,19342.0,19341.0,0.0856472]
[1664616190185,0.2454186,19342.0,19341.0,0.1306472]
[1664616191461,0.2454186,19342.0,19341.0,0.0856472]
[1664616192326,0.2454186,19342.0,19341.0,0.1306472]
[1664616193508,0.2454186,19342.0,19341.0,0.0856472]
[1664616194180,0.2454186,19342.0,19341.0,0.1296472]
[1664616194396,0.2454186,19342.0,19341.0,0.044]
[1664616195585,0.2454186,19342.0,19340.0,0.906472]
[1664616195781,0.2454186,19342.0,19341.0,0.05]
[1664616198198,0.2454186,19342.0,19341.0,0.094]
[1664616199519,0.2454186,19342.0,19341.0,0.05]
[1664616200167,0.2454186,19342.0,19341.0,0.095]
[1664616200458,0.2454186,19342.0,19341.0,0.045]
[1664616201545,0.2454186,19342.0,19340.0,0.906472]
[1664616201789,0.2454186,19342.0,19341.0,0.1406472]
[1664616202010,0.2454186,19342.0,19341.0,0.05]
[1664616202282,0.2454186,19342.0,19341.0,0.095]
[1664616203690,0.2454186,19342.0,19341.0,0.05]
[1664616204351,0.2454186,19342.0,19341.0,0.095]
[1664616205558,0.2454186,19342.0,19341.0,0.05]
[1664616206470,0.2454186,19342.0,19341.0,0.095]
[1664616207444,0.2454186,19342.0,19341.0,0.05]
[1664616207881,0.2454186,19342.0,19340.0,0.51868]
[1664616208176,0.2454186,19342.0,19341.0,0.05]
[1664616208410,0.2454186,19342.0,19341.0,0.095]
[1664616208635,0.6331746,19342.0,19341.0,0.045]
[1664616210022,0.6331746,19342.0,19341.0,0.05]
[1664616210404,0.6331746,19342.0,19341.0,0.045]
[1664616211639,0.6331746,19342.0,19341.0,0.05]
[1664616212095,0.9331746,19342.0,19341.0,0.05]
[1664616212309,0.6331746,19342.0,19341.0,0.094]
[1664616212731,0.6331746,19342.0,19341.0,0.044]
[1664616213751,0.6331746,19342.0,19341.0,0.05]
[1664616214419,0.6331746,19342.0,19341.0,0.094]
[1664616214846,0.6331746,19342.0,19341.0,0.044]
[1664616215739,0.6331746,19342.0,19341.0,0.05]
[1664616216297,0.6331746,19342.0,19341.0,0.092]
[1664616216795,0.6331746,19342.0,19341.0,0.042]
[1664616217588,0.6331746,19342.0,19341.0,0.05]
[1664616218512,0.6331746,19342.0,19341.0,0.092]
[1664616218944,0.6331746,19342.0,19341.0,0.042]
[1664616219510,0.6331746,19342.0,19340.0,0.51868]
[1664616219746,0.6331746,19342.0,19341.0,0.05]
[1664616220406,0.6331746,19342.0,19341.0,0.092]
[1664616221475,0.6331746,19342.0,19341.0,0.042]
[1664616222026,0.6331746,19342.0,19341.0,0.05]
[1664616222410,0.6331746,19342.0,19341.0,0.092]
[1664616223780,0.6331746,19342.0,19340.0,0.51868]
[1664616224011,0.6331746,19342.0,19341.0,0.05]
[1664616226030,0.6331746,19342.0,19340.0,0.51868]
[1664616226252,0.6331746,19342.0,19341.0,0.05]
[1664616226468,0.6331746,19342.0,19341.0,0.095]
[1664616227722,0.6331746,19342.0,19341.0,0.05]
[1664616228184,0.6331746,19342.0,19340.0,0.51868]
[1664616228408,0.6331746,19342.0,19341.0,0.095]
[1664616228643,0.6331746,19342.0,19341.0,0.045]
[1664616228855,0.6331746,19342.0,19341.0,0.04]
[1664616229829,0.6331746,19342.0,19340.0,0.51868]
[1664616230040,0.6331746,19342.0,19341.0,0.05]
[1664616231232,0.6331746,19342.0,19340.0,0.56168]
[1664616231409,0.6331746,19342.0,19341.0,0.05]
[1664616231624,0.6331746,19342.0,19340.0,0.51868]
[1664616231851,0.6331746,19342.0,19341.0,0.05]
[1664616232576,0.6331746,19342.0,19341.0,0.093]
[1664616232801,0.6331746,19342.0,19341.0,0.043]
[1664616233739,0.6331746,19342.0,19340.0,0.51868]
[1664616233959,0.6331746,19342.0,19341.0,0.05]
[1664616236433,0.6331746,19342.0,19341.0,0.093]
[1664616237105,0.6331746,19342.0,19341.0,0.043]
[1664616237748,0.6331746,19342.0,19340.0,0.51868]
[1664616237968,0.6331746,19342.0,19341.0,0.05]
[1664616240514,0.6331746,19342.0,19341.0,0.094]
[1664616241478,0.6331746,19342.0,19341.0,0.044]
[1664616241700,0.3746706,19342.0,19340.0,0.51868]
[1664616241894,0.3746706,19342.0,19341.0,0.05]
[1664616242619,0.3746706,19342.0,19341.0,0.093]
[1664616243512,0.3746706,19342.0,19341.0,0.043]
[1664616243734,0.3746706,19342.0,19340.0,0.51868]
[1664616243959,0.3746706,19342.0,19341.0,0.05]
[1664616244613,0.3746706,19342.0,19341.0,0.094]
[1664616244834,0.3746706,19342.0,19341.0,0.044]
[1664616245725,0.3746706,19342.0,19340.0,0.51868]
[1664616245952,0.3746706,19342.0,19341.0,0.05]
[1664616246587,0.3746706,19342.0,19341.0,0.094]
[1664616247005,0.3746706,19342.0,19341.0,0.044]
[1664616247853,0.3746706,19342.0,19340.0,0.51868]
[1664616248007,0.3746706,19342.0,19341.0,0.05]
[1664616248432,0.3746706,19342.0,19341.0,0.094]
[1664616249491,0.3746706,19342.0,19341.0,0.044]
[1664616249708,0.3746706,19342.0,19340.0,0.51868]
[1664616249929,0.3746706,19342.0,19341.0,0.05]
[1664616251568,0.3746706,19342.0,19340.0,0.51868]
[1664616251783,0.3746706,19342.0,19341.0,0.05]
[1664616252002,0.3746706,19342.0,19341.0,0.094]
[1664616252361,0.3746706,19342.0,19341.0,0.044]
[1664616253091,0.3746706,19342.0,19341.0,0.088]
[1664616253540,0.9331746,19342.0,19341.0,0.044]
[1664616253764,0.6331746,19342.0,19341.0,0.05]
[1664616254703,0.6331746,19342.0,19341.0,0.044]
[1664616255780,0.6331746,19342.0,19340.0,0.51868]
[1664616256029,0.6331746,19342.0,19341.0,0.05]
[1664616256199,0.63308719,19342.0,19341.0,0.05]
[1664616256638,0.63308719,19342.0,19341.0,0.093]
[1664616257224,0.63308719,19342.0,19341.0,0.043]
[1664616257945,0.63308719,19342.0,19340.0,0.51868]
[1664616258069,0.63308719,19342.0,19341.0,0.05]
[1664616259204,0.67217534,19342.0,19341.0,0.05]
[1664616260707,0.67217534,19342.0,19341.0,0.094]
[1664616260922,0.67217534,19342.0,19341.0,0.044]
[1664616261934,0.67217534,19342.0,19341.0,0.05]
[1664616262621,0.67217534,19342.0,19341.0,0.093]
[1664616262990,0.67217534,19342.0,19341.0,0.043]
[1664616263449,1.05467112,19342.0,19341.0,0.043]
[1664616263662,1.48918434,19342.0,19341.0,0.043]
[1664616263880,1.48918434,19342.0,19340.0,0.51868]
[1664616264687,1.48918434,19342.0,19340.0,0.30168]
[1664616265022,0.3,19341.0,19340.0,0.30168]
[1664616265249,1.48918434,19342.0,19340.0,0.17234]
[1664616265477,1.87168012,19342.0,19340.0,0.17234]
[1664616265684,0.3,19341.0,19340.0,0.17234]
[1664616265901,0.3,19341.0,19340.0,0.12934]
[1664616266145,1.18918434,19342.0,19340.0,0.12934]
[1664616266507,1.15009619,19342.0,19340.0,0.17234]
[1664616266732,1.15009619,19342.0,19340.0,0.30168]
[1664616267807,1.15009619,19342.0,19340.0,0.25868]
[1664616268779,1.15009619,19342.0,19340.0,0.30068]
[1664616269886,1.15009619,19342.0,19340.0,0.25868]
[1664616270444,0.63308719,19342.0,19340.0,0.25868]
[1664616270670,0.63308719,19342.0,19341.0,0.05]
[1664616270915,0.63308719,19342.0,19340.0,0.30068]
[1664616271152,0.63308719,19342.0,19341.0,0.05]
[1664616271374,0.37458319,19342.0,19341.0,0.05]
[1664616272072,0.67458319,19342.0,19341.0,0.05]
[1664616272303,0.37458319,19342.0,19341.0,0.05]
[1664616272536,0.37458319,19342.0,19341.0,0.091]
[1664616272745,0.37458319,19342.0,19341.0,0.041]
[1664616273462,0.37458319,19342.0,19341.0,0.301]
[1664616273958,0.37458319,19342.0,19341.0,0.26]
[1664616274635,0.37458319,19342.0,19341.0,0.303]
[1664616275981,0.37458319,19342.0,19341.0,0.26]
[1664616276677,0.37458319,19342.0,19341.0,0.303]
[1664616278230,0.37458319,19342.0,19341.0,0.26]
[1664616278698,0.37458319,19342.0,19341.0,0.304]
[1664616279985,0.37458319,19342.0,19341.0,0.26]
[1664616280857,0.37458319,19342.0,19341.0,0.304]
[1664616281544,0.24533119,19342.0,19341.0,0.304]
[1664616281888,0.24533119,19342.0,19341.0,0.26]
[1664616282821,0.24533119,19342.0,19341.0,0.304]
[1664616284018,0.24533119,19342.0,19341.0,0.26]
[1664616284791,0.24533119,19342.0,19341.0,0.304]
[1664616285895,0.24533119,19342.0,19341.0,0.26]
[1664616286727,0.24533119,19342.0,19341.0,0.304]
[1664616287830,0.24533119,19342.0,19341.0,0.30392157]
[1664616288040,0.24533119,19342.0,19341.0,0.25992157]
[1664616288774,0.24533119,19342.0,19341.0,0.30392157]
[1664616289965,0.24533119,19342.0,19341.0,0.25992157]
[1664616290169,0.37458319,19342.0,19341.0,0.25992157]
[1664616290806,0.37458319,19342.0,19341.0,0.30092157]
[1664616292123,0.37458319,19342.0,19341.0,0.25992157]
[1664616292499,0.63308719,19342.0,19341.0,0.25992157]
[1664616292751,0.63308719,19342.0,19341.0,0.30092157]
[1664616293420,0.93308719,19342.0,19341.0,0.30092157]
[1664616294034,0.93308719,19342.0,19341.0,0.25992157]
[1664616294830,0.93308719,19342.0,19341.0,0.30092157]
[1664616296177,0.93308719,19342.0,19341.0,0.25992157]
[1664616296779,0.93308719,19342.0,19341.0,0.30092157]
[1664616297030,1.88398926,19342.0,19341.0,0.30092157]
[1664616298299,1.45009619,19342.0,19341.0,0.30092157]
[1664616298531,1.45009619,19342.0,19341.0,0.25992157]
[1664616298911,1.45009619,19342.0,19341.0,0.30092157]
[1664616300142,1.15009619,19342.0,19341.0,0.25992157]
[1664616300378,2.0142453,19342.0,19341.0,0.25992157]
[1664616300602,2.89278513,19342.0,19341.0,0.25992157]
[1664616300827,3.40451657,19342.0,19341.0,0.30092157]
[1664616301056,3.66962935,19342.0,19341.0,0.30092157]
[1664616301272,3.67914256,19342.0,19341.0,0.30092157]
[1664616301498,3.62914256,19342.0,19341.0,0.30092157]
[1664616301718,3.24664678,19342.0,19341.0,0.30092157]
[1664616301938,3.62914256,19342.0,19341.0,0.30092157]
[1664616302156,3.29645167,19342.0,19341.0,0.25992157]
[1664616302400,3.24664678,19342.0,19341.0,0.25992157]
[1664616302856,3.24664678,19342.0,19341.0,0.30092157]
[1664616303789,3.29664678,19342.0,19341.0,0.30092157]
[1664616304003,3.24664678,19342.0,19341.0,0.30092157]
[1664616304236,3.67914256,19342.0,19341.0,0.30092157]
[1664616304455,2.75060273,19342.0,19341.0,0.30092157]
[1664616304668,2.75060273,19342.0,19341.0,0.25992157]
[1664616304889,2.75060273,19342.0,19341.0,0.30092157]
[1664616306103,2.75060273,19342.0,19341.0,0.25992157]
[1664616306796,2.75060273,19342.0,19341.0,0.30092157]
[1664616308004,2.75060273,19342.0,19341.0,0.25992157]
[1664616308227,0.8094803,19342.0,19341.0,0.31178173]
[1664616308909,0.8094803,19342.0,19341.0,0.35578173]
[1664616310073,0.8094803,19342.0,19341.0,0.25492157]
[1664616310951,0.8094803,19342.0,19341.0,0.29792157]
[1664616312130,0.8094803,19342.0,19341.0,0.25492157]
[1664616312757,0.9387323,19342.0,19341.0,0.29592157]
[1664616314058,0.9387323,19342.0,19341.0,0.25492157]
[1664616314957,0.9387323,19342.0,19341.0,0.29592157]
[1664616315946,0.9387323,19342.0,19341.0,0.25492157]
[1664616315947,0.93863987,19342.0,19341.0,0.25492157]
[1664616316808,0.93863987,19342.0,19341.0,0.29592157]
[1664616317019,1.23863987,19342.0,19341.0,0.29592157]
[1664616317789,0.93863987,19342.0,19341.0,0.29592157]
[1664616318231,0.93863987,19342.0,19341.0,0.25492157]